bitfinex-derivatives/quotes_SOLF0:USTF0_20250626
["timestamp","ask_amount","ask_price","bid_price","bid_amount"]
[1750952923898,40.38,142.85,142.81,6.9996]
[1750952924095,9.42033096,142.84,142.81,6.9996]
[1750952924298,2.42173096,142.83,142.81,6.9996]
[1750952924598,2.42173096,142.82,142.81,6.9996]
[1750952925002,6.9981,142.85,142.82,6.9991]
[1750952925199,2.42684003,142.84,142.82,6.9991]
[1750952925401,6.9981,142.85,142.82,6.9991]
[1750952925604,2.42647318,142.84,142.82,6.9991]
[1750952925799,6.9981,142.85,142.82,6.9991]
[1750952926000,2.42720511,142.84,142.82,6.9991]
[1750952926202,6.9981,142.85,142.82,6.9991]
[1750952926396,2.42805048,142.84,142.82,6.9991]
[1750952926599,2.43753931,142.83,142.81,6.9997]
[1750952926803,6.9988,142.84,142.81,6.9997]
[1750952927003,2.4375404,142.83,142.81,6.9997]
[1750952927198,6.9989,142.83,142.81,6.9997]
[1750952927399,5.97739951,142.86,142.81,6.9997]
[1750952927696,2.43780914,142.85,142.81,6.9997]
[1750952927903,2.43780914,142.84,142.81,6.9997]
[1750952928096,2.43780914,142.83,142.81,6.9997]
[1750952928297,5.97739954,142.86,142.81,6.9997]
[1750952928504,2.4381749,142.85,142.81,6.9997]
[1750952928707,2.4381749,142.84,142.81,6.9997]
[1750952928905,2.4381749,142.83,142.81,6.9997]
[1750952929107,5.97858453,142.86,142.81,6.9997]
[1750952929404,2.4381749,142.85,142.81,6.9997]
[1750952929600,6.9989,142.83,142.81,6.9997]
[1750952930003,15.47550469,142.86,142.8,11.49024743]
[1750952930198,8.42481708,142.85,142.8,7.0001]
[1750952930506,2.4377064,142.84,142.8,7.0001]
[1750952930698,9.4369064,142.83,142.8,7.0001]
[1750952930900,2.4377064,142.82,142.79,47.3606]
[1750952931100,4.49014743,142.84,142.79,47.3606]
[1750952931298,4.49014743,142.82,142.77,2.4555]
[1750952931602,2.43749051,142.81,142.77,2.4555]
[1750952931804,2.43749051,142.8,142.77,2.4555]
[1750952932007,4.49014743,142.82,142.77,7.0015]
[1750952932209,7.0008,142.8,142.77,7.0015]
[1750952932611,7.0008,142.8,142.76,40.36]
[1750952932909,7.0001,142.81,142.76,40.36]
[1750952933109,2.4373483,142.8,142.78,7.0012]
[1750952933309,7.0001,142.81,142.78,7.0012]
[1750952933512,9.43805656,142.8,142.76,40.36]
[1750952933806,40.36,142.84,142.77,4.49014743]
[1750952934009,6.9997,142.82,142.77,4.49014743]
[1750952934203,2.43754187,142.81,142.77,4.49014743]
[1750952934507,2.43754187,142.8,142.78,7.0009]
[1750952934708,6.9999,142.81,142.77,4.49014743]
[1750952934899,2.43803709,142.8,142.76,40.36]
[1750952935099,4.49014743,142.83,142.76,40.36]
[1750952935307,7.0007,142.8,142.76,40.36]
[1750952935505,2.43839704,142.79,142.77,7.0015]
[1750952935704,7.0007,142.8,142.77,7.0015]
[1750952935996,2.4388695,142.79,142.77,7.0015]
[1750952936209,7.0007,142.8,142.77,7.0015]
[1750952936407,2.43901623,142.79,142.77,7.0015]
[1750952936609,7.0007,142.8,142.77,7.0015]
[1750952936907,2.43933113,142.79,142.77,7.0015]
[1750952937108,7.0007,142.8,142.77,7.0015]
[1750952937309,2.43933113,142.79,142.77,7.0015]
[1750952937611,7.0007,142.8,142.77,7.0015]
[1750952938113,7.0009,142.79,142.77,7.0015]
[1750952939112,40.36,142.84,142.76,40.36]
[1750952939113,7.0015,142.78,142.76,40.36]
[1750952939313,4.49014743,142.81,142.76,40.36]
[1750952939814,2.43336125,142.8,142.76,40.36]
[1750952940012,2.43336125,142.79,142.76,40.36]
[1750952940206,6.9996,142.82,142.79,7.0006]
[1750952940516,2.43386377,142.81,142.79,7.0006]
[1750952940719,2.43386377,142.8,142.79,7.0006]
[1750952942715,4.49014743,142.85,142.79,4.49014743]
[1750952943018,6.999,142.83,142.79,4.49014743]
[1750952943217,2.43245285,142.82,142.8,7.0001]
[1750952943412,6.999,142.83,142.8,7.0001]
[1750952943612,2.43239333,142.82,142.8,7.0001]
[1750952943826,2.4322694,142.81,142.8,7.0001]
[1750952944315,2.43227047,142.81,142.8,7.0001]
[1750952946022,42.816,142.87,142.76,40.36]
[1750952946023,4.93998473,142.86,142.81,6.9998]
[1750952946321,6.9986,142.84,142.8,4.49014743]
[1750952946515,2.43224616,142.83,142.77,2.395]
[1750952946716,2.43224616,142.82,142.76,44.85014743]
[1750952946913,4.49014743,142.84,142.76,44.85014743]
[1750952946914,2.43224616,142.81,142.76,44.85014743]
[1750952947114,2.43224616,142.8,142.76,44.85014743]
[1750952947313,4.49014743,142.84,142.76,44.85014743]
[1750952947514,7.0006,142.8,142.76,44.85014743]
[1750952947715,2.43793647,142.79,142.76,44.85014743]
[1750952947919,4.93896563,142.83,142.76,44.85014743]
[1750952948123,8.4191158,142.82,142.76,44.85014743]
[1750952948322,2.43783906,142.81,142.76,44.85014743]
[1750952948517,2.43783906,142.8,142.76,44.85014743]
[1750952948717,2.43783906,142.79,142.76,44.85014743]
[1750952948918,4.49014743,142.84,142.76,44.85014743]
[1750952949121,13.34902922,142.83,142.79,7.0005]
[1750952949424,9.43588847,142.82,142.79,7.0005]
[1750952949611,2.43628847,142.81,142.8,7.0004]
[1750952949816,4.93455504,142.86,142.8,4.49014743]
[1750952950118,8.41622787,142.85,142.8,44.51014743]
[1750952950319,2.43550166,142.84,142.8,44.51014743]
[1750952950517,2.43550166,142.83,142.8,44.51014743]
[1750952950818,2.43550166,142.82,142.8,44.51014743]
[1750952951016,5.98035092,142.85,142.82,6.999]
[1750952951216,6.94614743,142.87,142.8,44.51014743]
[1750952951217,2.43533976,142.84,142.8,44.51014743]
[1750952951421,2.43533976,142.83,142.82,6.9994]
[1750952955029,2.43533976,142.83,142.8,40.02]
[1750952955225,2.43533976,142.82,142.8,40.02]
[1750952955418,6.9993,142.83,142.8,7.0001]
[1750952955725,2.43359,142.82,142.8,7.0001]
[1750952955925,6.9994,142.82,142.8,7.0001]
[1750952956127,4.49014743,142.83,142.78,7.0009]
[1750952956331,2.43792788,142.82,142.78,7.0009]
[1750952956629,9.43802788,142.81,142.78,7.0009]
[1750952956832,2.43792788,142.8,142.78,7.0009]
[1750952957127,4.49014743,142.83,142.78,7.0009]
[1750952957318,2.4372861,142.82,142.78,7.0009]
[1750952957521,2.4372861,142.81,142.78,7.0009]
[1750952957727,2.4372861,142.8,142.78,7.0009]
[1750952958027,2.4372861,142.79,142.78,7.0009]
[1750952958227,2.4372861,142.79,142.77,47.0215]
[1750952958427,7.0004,142.8,142.77,47.0215]
[1750952958722,2.4383417,142.79,142.77,7.0015]
[1750952958925,2.4383417,142.78,142.77,7.0015]
[1750952961629,2.4383417,142.78,142.76,7.0021]
[1750952961934,2.4383417,142.77,142.74,44.51014743]
[1750952962122,4.49014743,142.79,142.71,670.12]
[1750952962318,4.49014743,142.77,142.71,670.12]
[1750952962522,2.43054079,142.76,142.71,670.12]
[1750952962723,2.43054079,142.75,142.71,670.12]
[1750952962921,7.0021,142.77,142.71,670.12]
[1750952963124,9.43287997,142.76,142.71,670.12]
[1750952963430,2.43047997,142.75,142.72,4.49014743]
[1750952963631,4.49014743,142.79,142.76,7.0021]
[1750952963632,7.0011,142.79,142.76,7.0021]
[1750952963832,2.43079334,142.78,142.74,4.49014743]
[1750952964026,2.43079334,142.78,142.71,670.12]
[1750952964027,2.43079334,142.77,142.72,4.49014743]
[1750952964331,2.43079334,142.76,142.71,670.12]
[1750952964530,2.43079334,142.75,142.72,4.49014743]
[1750952964733,5.97166733,142.78,142.72,4.49014743]
[1750952965031,2.43036386,142.77,142.74,7.003]
[1750952965232,2.43036386,142.76,142.74,7.003]
[1750952965528,2.43036386,142.75,142.74,7.003]
[1750952965929,2.43036386,142.75,142.73,7.0036]
[1750952966125,7.0026,142.76,142.73,7.0036]
[1750952966326,2.42134922,142.75,142.73,7.0036]
[1750952966627,7.0026,142.76,142.73,7.0036]
[1750952966828,2.42054044,142.75,142.73,7.0036]
[1750952967027,7.0026,142.76,142.73,7.0036]
[1750952967337,2.42054098,142.75,142.73,7.0036]
[1750952967636,7.0022,142.77,142.74,7.0033]
[1750952967826,2.41992282,142.76,142.74,7.0033]
[1750952968132,2.41992282,142.75,142.74,7.0033]
[1750952969833,2.41992282,142.75,142.73,7.0036]
[1750952970039,4.49014743,142.77,142.71,670.12]
[1750952970338,7.003,142.75,142.71,670.12]
[1750952970635,7.003,142.75,142.72,7.004]
[1750952970835,7.003,142.75,142.71,670.12]
[1750952971636,7.003,142.75,142.73,7.0037]
[1750952971840,7.0025,142.76,142.71,670.12]
[1750952972034,2.41091117,142.75,142.71,670.12]
[1750952972334,7.0025,142.76,142.73,7.0033]
[1750952972533,2.40861308,142.75,142.73,7.0033]
[1750952972734,7.0025,142.76,142.73,7.0033]
[1750952972941,2.40861361,142.75,142.73,7.0033]
[1750952973125,7.0025,142.76,142.73,7.0033]
[1750952973332,2.40861254,142.75,142.73,7.0033]
[1750952973527,7.0028,142.75,142.73,7.0033]
[1750952974037,7.0027,142.76,142.73,7.0033]
[1750952974236,9.23e-06,142.75,142.74,11.49344743]
[1750952974448,11.91235069,142.81,142.74,44.53014743]
[1750952974634,676.89724743,142.84,142.8,7.0002]
[1750952974635,5.90334971,142.83,142.8,7.0002]
[1750952974939,46.85724743,142.84,142.8,7.0002]
[1750952975142,12.89916959,142.83,142.8,7.0002]
[1750952975338,6.9991,142.83,142.8,7.0002]
[1750952975638,6.9993,142.83,142.8,7.0002]
[1750952976233,6.9995,142.82,142.8,7.0002]
[1750952977442,6.9995,142.82,142.79,7.0006]
[1750952977641,6.9999,142.81,142.77,147.99014743]
[1750952978043,7.40485136,142.83,142.77,143.5]
[1750952978342,7.0001,142.81,142.77,143.5]
[1750952978539,7.0001,142.81,142.78,7.0011]
[1750952979344,7.0005,142.8,142.78,7.0011]
[1750952979537,7.0005,142.8,142.77,7.0016]
[1750952979734,4.49014743,142.8,142.74,40.04]
[1750952980039,4.49014743,142.78,142.74,40.04]
[1750952980342,7.0016,142.78,142.74,40.04]
[1750952980530,4.94755594,142.79,142.75,7.0025]
[1750952980736,44.21014743,142.8,142.75,7.0025]
[1750952980943,7.0016,142.78,142.75,7.0025]
[1750952981742,7.002,142.77,142.74,47.0431]
[1750952982151,7.002,142.77,142.74,40.04]
[1750952982347,7.002,142.77,142.75,7.0028]
[1750952982644,7.0015,142.78,142.74,40.04]
[1750952983346,7.0015,142.78,142.75,7.0025]
[1750952984343,7.0015,142.78,142.76,7.0022]
[1750952984645,7.0015,142.78,142.74,40.04]
[1750952984944,7.0015,142.78,142.75,7.0026]
[1750952985249,4.49014743,142.79,142.71,817.71014743]
[1750952985446,4.49014743,142.79,142.74,7.0031]
[1750952986047,7.0024,142.76,142.74,7.0031]
[1750952986643,4.49014743,142.79,142.71,817.71014743]
[1750952987447,7.0016,142.78,142.75,7.0026]
[1750952988645,7.001,142.79,142.73,4.49014743]
[1750952988845,44.21014743,142.8,142.73,4.49014743]
[1750952989148,4.49014743,142.8,142.73,4.49014743]
[1750952989348,11.49084743,142.8,142.77,7.0016]
[1750952989654,4.49014743,142.8,142.77,7.0016]
[1750952990343,7.0011,142.79,142.76,7.0021]
[1750952990847,7.0011,142.79,142.73,4.49014743]
[1750952991048,7.0011,142.79,142.77,7.0016]
[1750952991549,7.0006,142.8,142.77,7.0016]
[1750952991934,4.92812994,142.81,142.76,7.0021]
[1750952992140,7.0011,142.79,142.76,7.0021]
[1750952992544,7.0011,142.79,142.75,7.0026]
[1750952992744,7.0014,142.78,142.75,7.0026]
[1750952993242,4.92848039,142.81,142.73,4.49014743]
[1750952993440,10.40421556,142.8,142.73,4.49014743]
[1750952993645,4.49014743,142.8,142.73,4.49014743]
[1750952993846,7.0027,142.76,142.73,11.49354743]
[1750952994450,7.0027,142.76,142.74,7.0033]
[1750952995650,56.2342,142.83,142.73,4.49014743]
[1750952995848,10.86029055,142.82,142.75,4.49014743]
[1750952996055,4.93820371,142.81,142.75,4.49014743]
[1750952996244,7.0007,142.8,142.77,7.0018]
[1750952996949,7.0009,142.79,142.77,7.0018]
[1750952997353,5.92622354,142.81,142.77,7.0018]
[1750952997546,7.0006,142.8,142.77,7.0018]
[1750952998056,7.0001,142.81,142.76,4.49014743]
[1750952999159,7.0001,142.81,142.78,7.001]
[1750953001358,7.0004,142.8,142.77,7.0017]
[1750953001563,7.0004,142.8,142.76,4.49014743]
[1750953002451,4.49014743,142.82,142.75,2.3891]
[1750953002654,10.98297753,142.81,142.75,2.3891]
[1750953002851,10.98297331,142.8,142.75,2.3891]
[1750953003052,4.49014743,142.82,142.75,2.3891]
[1750953003358,4.49014743,142.78,142.7,39.72]
[1750953003561,4.49014743,142.78,142.71,4.49014743]
[1750953003562,12.95067122,142.77,142.71,4.49014743]
[1750953003870,4.49014743,142.78,142.71,4.49014743]
[1750953004364,7.0026,142.76,142.73,7.0034]
[1750953005165,7.0026,142.76,142.68,2.2815]
[1750953005166,4.49014743,142.76,142.68,2.2815]
[1750953005361,4.49014743,142.72,142.64,39.74]
[1750953005760,39.74,142.73,142.67,4.49014743]
[1750953005959,5.9441752,142.72,142.67,4.49014743]
[1750953006162,4.49014743,142.7,142.61,637.2249]
[1750953006369,4.49014743,142.7,142.62,39.74]
[1750953006764,7.0062,142.69,142.65,7.0074]
[1750953007164,7.0062,142.69,142.63,4.49014743]
[1750953007372,4.49014743,142.7,142.66,7.0069]
[1750953007572,4.49014743,142.7,142.63,4.49014743]
[1750953008469,7.0065,142.68,142.65,7.0074]
[1750953008974,7.006,142.69,142.66,7.0072]
[1750953009568,7.0063,142.68,142.65,7.0075]
[1750953011089,4.49014743,142.7,142.62,39.74]
[1750953011292,4.49014743,142.68,142.62,39.74]
[1750953011984,7.1765,142.71,142.63,4.49014743]
[1750953012288,4.49014743,142.7,142.63,4.49014743]
[1750953013085,2.4415,142.71,142.65,4.49014743]
[1750953013580,7.0054,142.7,142.67,7.0065]
[1750953013779,7.0054,142.7,142.65,4.49014743]
[1750953014085,4.49014743,142.7,142.63,4.49014743]
[1750953014387,4.49014743,142.7,142.62,39.74]
[1750953014588,7.0066,142.68,142.65,7.0077]
[1750953014884,4.49014743,142.68,142.62,39.74]
[1750953015185,7.0075,142.66,142.63,7.0084]
[1750953015779,7.007,142.67,142.64,7.0081]
[1750953015976,4.49014743,142.68,142.64,7.0081]
[1750953016376,4.49014743,142.68,142.61,48.63094743]
[1750953016377,7.0075,142.66,142.63,7.0085]
[1750953016578,4.49014743,142.66,142.61,39.46]
[1750953016892,11.49864743,142.64,142.58,43.95014743]
[1750953017283,11.49864743,142.64,142.61,7.0094]
[1750953017485,4.49014743,142.64,142.58,43.95014743]
[1750953017790,4.49014743,142.64,142.58,39.46]
[1750953018384,7.0095,142.62,142.59,7.0103]
[1750953018584,7.0095,142.62,142.58,39.46]
[1750953018986,46.4678,142.65,142.62,7.009]
[1750953019193,43.95014743,142.68,142.6,4.49014743]
[1750953019891,39.46,142.68,142.62,4.49014743]
[1750953020195,7.0067,142.68,142.64,7.0079]
[1750953020385,7.0067,142.68,142.62,43.95014743]
[1750953020784,2.4458,142.69,142.64,4.49014743]
[1750953021387,7.0071,142.67,142.64,11.49804743]
[1750953021589,2.4458,142.69,142.62,43.95014743]
[1750953022591,7.007,142.67,142.64,7.008]
[1750953022791,2.4458,142.69,142.64,7.008]
[1750953022993,2.4458,142.69,142.62,43.95014743]
[1750953023496,7.0073,142.66,142.63,7.0083]
[1750953023890,7.007,142.67,142.62,43.95014743]
[1750953024084,41.9015,142.71,142.64,4.49014743]
[1750953024398,7.0069,142.67,142.64,11.49814743]
[1750953024789,7.0069,142.67,142.64,4.49014743]
[1750953024989,7.0068,142.67,142.64,4.49014743]
[1750953025892,7.0068,142.67,142.64,11.49814743]
[1750953026798,7.0065,142.68,142.65,7.0077]
[1750953026999,7.0065,142.68,142.64,4.49014743]
[1750953027301,7.0065,142.68,142.65,7.0075]
[1750953030005,7.0069,142.67,142.64,11.49814743]
[1750953030297,7.0096,142.62,142.55,43.95014743]
[1750953031290,11.49904743,142.63,142.59,7.0105]
[1750953031489,39.46,142.65,142.59,7.0105]
[1750953031693,4.49014743,142.64,142.59,7.0105]
[1750953031905,7.0095,142.62,142.59,7.0105]
[1750953032104,4.49014743,142.64,142.58,7.0109]
[1750953032404,7.0098,142.61,142.58,7.0109]
[1750953032899,4.49014743,142.64,142.59,7.0106]
[1750953033603,7.0094,142.62,142.59,7.0106]
[1750953035503,630.44,142.72,142.61,4.49014743]
[1750953035804,34.02866482,142.77,142.6,39.48]
[1750953035805,639.34137654,142.79,142.71,7.0046]
[1750953036006,7.0031,142.75,142.71,7.0046]
[1750953036207,49.46826835,142.78,142.69,4.49014743]
[1750953036208,4.49014743,142.77,142.69,4.49014743]
[1750953037004,7.0031,142.75,142.69,4.49014743]
[1750953037501,7.0031,142.75,142.71,7.0045]
[1750953038097,4.49014743,142.77,142.69,4.49014743]
[1750953038302,6.74369884,142.77,142.68,46.22369884]
[1750953038711,7.0033,142.75,142.71,7.0045]
[1750953039205,6.74369884,142.77,142.7,7.0051]
[1750953039804,7.0039,142.73,142.7,7.0051]
[1750953040006,7.0039,142.73,142.68,46.22369884]
[1750953040205,39.48,142.78,142.68,39.48]
[1750953040206,6.74369884,142.75,142.68,39.48]
[1750953040507,6.74369884,142.73,142.65,45.92369884]
[1750953040901,7.0051,142.71,142.67,7.0065]
[1750953041101,7.0051,142.71,142.65,45.92369884]
[1750953041408,39.18,142.74,142.66,7.0069]
[1750953041610,6.74369884,142.71,142.66,7.0069]
[1750953042409,7.0062,142.69,142.66,7.0069]
[1750953042599,6.74369884,142.71,142.64,7.0079]
[1750953043000,7.007,142.67,142.64,7.0079]
[1750953043905,7.007,142.67,142.63,39.18]
[1750953044304,6.74369884,142.67,142.61,7.0096]
[1750953044508,6.74369884,142.67,142.6,39.18]
[1750953044704,7.009,142.63,142.59,124.7596051]
[1750953045004,7.009,142.63,142.6,7.0099]
[1750953046208,7.009,142.63,142.59,124.7596051]
[1750953046209,7.009,142.63,142.61,7.0096]
[1750953046603,7.009,142.63,142.59,124.7596051]
[1750953046604,7.009,142.63,142.6,7.0099]
[1750953047008,7.009,142.63,142.59,124.7596051]
[1750953047208,7.009,142.63,142.6,7.0101]
[1750953047809,7.0085,142.64,142.59,124.7596051]
[1750953048002,39.18,142.66,142.59,124.7596051]
[1750953048199,6.74369884,142.68,142.63,7.0084]
[1750953048400,7.0074,142.66,142.63,7.0084]
[1750953049214,7.0074,142.66,142.61,39.18]
[1750953049215,7.007,142.67,142.61,39.18]
[1750953049800,7.0065,142.68,142.61,39.18]
[1750953050107,7.0065,142.68,142.62,6.74369884]
[1750953050407,7.0061,142.69,142.66,7.0069]
[1750953050711,6.74369884,142.71,142.62,6.74369884]
[1750953050929,7.0059,142.69,142.66,7.0072]
[1750953051303,7.0059,142.69,142.62,6.74369884]
[1750953051905,7.0055,142.7,142.64,6.74369884]
[1750953052105,7.0055,142.7,142.67,7.0065]
[1750953052508,7.005,142.71,142.68,7.0062]
[1750953052710,43.9775,142.72,142.65,39.18]
[1750953052711,41.5203,142.72,142.65,39.18]
[1750953052910,46.1845,142.72,142.66,6.74369884]
[1750953053109,46.1845,142.72,142.69,7.0055]
[1750953053313,39.18,142.75,142.66,6.74369884]
[1750953053510,7.0042,142.73,142.66,6.74369884]
[1750953053706,7.0042,142.73,142.69,7.0053]
[1750953054014,12.83414238,142.74,142.66,6.74369884]
[1750953054310,39.18,142.75,142.7,7.005]
[1750953054618,12.83389028,142.74,142.7,7.005]
[1750953054811,7.0037,142.74,142.7,7.005]
[1750953055708,7.0038,142.73,142.7,7.005]
[1750953056214,6.74369884,142.73,142.65,41.6468]
[1750953056414,7.0051,142.71,142.65,41.6468]
[1750953056609,7.0051,142.71,142.67,7.0065]
[1750953056818,7.0054,142.7,142.67,7.0065]
[1750953057614,7.0054,142.7,142.68,7.0062]
[1750953057811,7.005,142.71,142.68,7.0062]
[1750953059120,7.0053,142.7,142.67,7.0066]
[1750953059417,7.0053,142.7,142.65,41.6468]
[1750953059418,6.74369884,142.73,142.65,41.6468]
[1750953059619,17.49552119,142.73,142.65,41.6468]
[1750953059814,6.74369884,142.73,142.65,41.6468]
[1750953060013,11.63721896,142.73,142.65,41.6468]
[1750953060322,17.45666957,142.73,142.67,7.0067]
[1750953060511,17.45666957,142.73,142.65,41.6468]
[1750953060712,12.56314945,142.73,142.65,41.6468]
[1750953060912,7.0045,142.72,142.69,7.0055]
[1750953061320,4.89352012,142.74,142.68,6.74369884]
[1750953061616,2.3228,142.76,142.69,39.18]
[1750953062015,2.3228,142.76,142.7,6.74369884]
[1750953062413,9.3254,142.76,142.73,7.0037]
[1750953062716,2.3228,142.76,142.73,7.0037]
[1750953063214,7.0028,142.75,142.71,7.0044]
[1750953063413,7.0028,142.75,142.7,6.74369884]
[1750953063717,7.0028,142.75,142.71,7.0043]
[1750953064716,7.0028,142.75,142.72,7.0042]
[1750953065619,7.0024,142.76,142.73,7.0036]
[1750953065818,2.4603,142.78,142.72,6.74369884]
[1750953066124,7.0022,142.77,142.74,7.0031]
[1750953066922,2.2661,142.8,142.74,7.0031]
[1750953067517,7.0021,142.77,142.74,7.0031]
[1750953068320,2.2661,142.8,142.73,39.16]
[1750953068520,13.9945,142.87,142.73,39.16]
[1750953068521,45.90369884,142.84,142.74,6.74369884]
[1750953068729,39.16,142.84,142.76,6.74369884]
[1750953069023,39.16,142.84,142.77,39.16]
[1750953069920,6.9996,142.82,142.77,39.16]
[1750953070325,39.16,142.84,142.77,39.16]
[1750953070826,6.74369884,142.82,142.77,39.16]
[1750953071324,7.0009,142.79,142.77,39.16]
[1750953071524,6.74369884,142.83,142.77,39.16]
[1750953071725,7.0004,142.8,142.78,7.0013]
[1750953071925,39.16,142.84,142.77,39.16]
[1750953072320,6.9994,142.82,142.78,7.0009]
[1750953072521,39.16,142.84,142.78,7.0009]
[1750953072916,7.0002,142.81,142.78,7.0009]
[1750953073225,39.16,142.84,142.78,7.0009]
[1750953073424,39.16,142.84,142.72,144.5184]
[1750953073425,7.002,142.77,142.73,38.9]
[1750953073617,39.16,142.84,142.73,38.9]
[1750953073618,6.74369884,142.79,142.73,38.9]
[1750953074629,6.74369884,142.81,142.73,38.9]
[1750953074830,6.74369884,142.82,142.73,45.64369884]
[1750953075036,7.0011,142.79,142.76,7.0019]
[1750953075333,6.74369884,142.82,142.73,45.64369884]
[1750953075628,45.90369884,142.84,142.73,45.64369884]
[1750953075824,6.74369884,142.82,142.73,45.64369884]
[1750953076216,7.001,142.79,142.73,45.64369884]
[1750953076927,7.001,142.79,142.76,7.0021]
[1750953077433,45.90369884,142.84,142.78,7.0013]
[1750953078123,45.90369884,142.84,142.75,6.74369884]
[1750953079334,7.0001,142.81,142.78,7.0013]
[1750953080128,6.9996,142.82,142.77,45.64369884]
[1750953080335,39.16,142.84,142.77,45.64369884]
[1750953080726,6.9994,142.82,142.77,45.64369884]
[1750953081131,39.16,142.84,142.77,45.64369884]
[1750953081425,635.0747,142.86,142.77,45.64369884]
[1750953081426,4.6747,142.86,142.77,45.64369884]
[1750953081629,6.74369884,142.85,142.79,7.0006]
[1750953081835,6.9997,142.82,142.79,7.0006]
[1750953082136,22.29643645,142.86,142.8,7.0003]
[1750953082335,6.9992,142.83,142.8,7.0003]
[1750953083137,6.9994,142.82,142.79,7.0006]
[1750953083532,6.74369884,142.84,142.77,38.9]
[1750953083730,7.0011,142.79,142.77,38.9]
[1750953084032,11.75603514,142.85,142.77,45.64369884]
[1750953084236,6.74369884,142.85,142.77,45.64369884]
[1750953084732,6.9996,142.82,142.79,7.0006]
[1750953088036,6.9996,142.82,142.77,38.9]
[1750953088037,6.74369884,142.83,142.77,38.9]
[1750953088236,6.74369884,142.79,142.71,632.5716]
[1750953088432,6.74369884,142.79,142.73,38.9]
[1750953088633,7.0016,142.78,142.75,7.0026]
[1750953089034,6.74369884,142.79,142.73,38.9]
[1750953089244,7.0021,142.77,142.73,38.9]
[1750953089840,7.0021,142.77,142.74,7.0029]
[1750953090838,7.0017,142.78,142.75,7.0028]
[1750953091041,6.74369884,142.8,142.73,38.9]
[1750953091436,7.0019,142.77,142.74,7.003]
[1750953091744,6.74369884,142.8,142.73,38.9]
[1750953091935,7.0016,142.78,142.75,7.0024]
[1750953092341,6.74369884,142.8,142.75,7.0024]
[1750953094431,7.0018,142.78,142.75,7.0024]
[1750953096641,7.0018,142.78,142.76,7.0023]
[1750953097039,7.0011,142.79,142.74,4.49373941]
[1750953097344,9.0508375,142.82,142.77,7.0016]
[1750953097643,15.42766216,142.81,142.77,7.0016]
[1750953097946,4.55709809,142.81,142.77,7.0016]
[1750953098247,7.0007,142.8,142.77,7.0016]
[1750953098445,15.43456885,142.81,142.74,4.49373941]
[1750953098746,7.0011,142.79,142.74,4.49373941]
[1750953099241,7.0011,142.79,142.76,7.002]
[1750953099442,4.56134598,142.81,142.74,4.49373941]
[1750953099639,15.44505542,142.8,142.75,7.0025]
[1750953099846,7.0013,142.79,142.75,7.0025]
[1750953100347,4.49373941,142.82,142.75,7.0025]
[1750953100551,15.45281796,142.81,142.73,38.9]
[1750953100847,4.49373941,142.78,142.71,632.5716]
[1750953101049,7.0034,142.74,142.72,7.004]
[1750953101348,7.0034,142.74,142.7,43.13373941]
[1750953101746,7.0034,142.74,142.71,7.0044]
[1750953102249,7.0032,142.75,142.7,43.13373941]
[1750953102644,7.0032,142.75,142.72,7.004]
[1750953104343,7.0024,142.76,142.73,7.0035]
[1750953104539,4.49373941,142.77,142.7,38.64]
[1750953105447,7.0036,142.74,142.71,7.0045]
[1750953109249,4.49373941,142.77,142.7,38.64]
[1750953109448,4.49373941,142.72,142.67,38.66]
[1750953109940,4.49373941,142.76,142.69,4.49373941]
[1750953110139,7.0033,142.74,142.69,4.49373941]
[1750953110339,4.99048171,142.73,142.71,7.0045]
[1750953110544,38.66,142.77,142.69,4.49373941]
[1750953110856,15.41833522,142.76,142.69,4.49373941]
[1750953111049,9.53553961,142.75,142.72,7.004]
[1750953111352,7.0029,142.75,142.72,7.004]
[1750953112655,7.0029,142.75,142.73,7.0037]
[1750953113352,7.0029,142.75,142.72,7.0041]
[1750953113551,11.47242405,142.76,142.69,6.74279943]